[Event "Titled Tuesday Blitz May 17 Early 2022"]
[White "Nakamura, Hikaru"]
[Black "Jarovinsky, Alexey"]
[WhiteFideId "2016192"]
[BlackFideId "14115131"]
[WhiteElo "2850"]
[BlackElo "2446"]
[Result "1-0"]
[Round "05"]
[TimeControl "180+1"]
[Date "2022.05.17"]
[WhiteClock "0:00:36"]
[BlackClock "0:00:03"]

1. Nf3 {[%clk 0:02:56]}  Nc6 {[%clk 0:02:59]} 2. d4 {[%clk 0:02:49]}  d6 {[%clk 0:02:59]} 3. e4 {[%clk 0:02:48]}  Nf6 {[%clk 0:02:56]} 4. Nc3 {[%clk 0:02:43]}  g6 {[%clk 0:02:56]} 5. d5 {[%clk 0:02:33]}  Nb8 {[%clk 0:02:52]} 6. Be3 {[%clk 0:02:29]}  Bg4 {[%clk 0:02:47]} 7. Be2 {[%clk 0:02:27]}  Nbd7 {[%clk 0:02:42]} 8. Nd4 {[%clk 0:02:27]}  Bxe2 {[%clk 0:02:41]} 9. Qxe2 {[%clk 0:02:28]}  Bg7 {[%clk 0:02:37]} 10. h4 {[%clk 0:02:23]}  h5 {[%clk 0:02:33]} 11. f3 {[%clk 0:02:21]}  a6 {[%clk 0:02:30]} 12. O-O-O {[%clk 0:02:19]}  Nb6 {[%clk 0:02:22]} 13. Bg5 {[%clk 0:02:14]}  Qd7 {[%clk 0:02:13]} 14. Kb1 {[%clk 0:02:13]}  Na4 {[%clk 0:02:11]} 15. Nxa4 {[%clk 0:02:11]}  Qxa4 {[%clk 0:02:12]} 16. Nb3 {[%clk 0:02:10]}  Nd7 {[%clk 0:02:01]} 17. c4 {[%clk 0:02:09]}  c5 {[%clk 0:01:49]} 18. dxc6 {[%clk 0:01:56]}  bxc6 {[%clk 0:01:48]} 19. Be3 {[%clk 0:01:56]}  c5 {[%clk 0:01:43]} 20. f4 {[%clk 0:01:57]}  Nb6 {[%clk 0:01:37]} 21. Rc1 {[%clk 0:01:54]}  Qc6 {[%clk 0:01:35]} 22. e5 {[%clk 0:01:55]}  O-O {[%clk 0:01:23]} 23. Bd2 {[%clk 0:01:42]}  a5 {[%clk 0:01:15]} 24. Nxa5 {[%clk 0:01:38]}  Qa4 {[%clk 0:01:11]} 25. Rh3 {[%clk 0:01:38]}  Rxa5 {[%clk 0:01:01]} 26. Ra3 {[%clk 0:01:36]}  Qxa3 {[%clk 0:01:01]} 27. bxa3 {[%clk 0:01:36]}  Rxa3 {[%clk 0:01:02]} 28. Rc3 {[%clk 0:01:32]}  Ra4 {[%clk 0:01:00]} 29. Bc1 {[%clk 0:01:27]}  dxe5 {[%clk 0:00:57]} 30. fxe5 {[%clk 0:01:26]}  Rd8 {[%clk 0:00:48]} 31. a3 {[%clk 0:01:12]}  Rd4 {[%clk 0:00:45]} 32. Rd3 {[%clk 0:00:54]}  Raxc4 {[%clk 0:00:30]} 33. Rxd4 {[%clk 0:00:51]}  cxd4 {[%clk 0:00:29]} 34. Bg5 {[%clk 0:00:38]}  e6 {[%clk 0:00:26]} 35. Bd8 {[%clk 0:00:37]}  Rc3 {[%clk 0:00:06]} 36. Qb5 {[%clk 0:00:35]}  Nd5 {[%clk 0:00:04]} 37. Qe8+ {[%clk 0:00:36]}  Bf8 {[%clk 0:00:03]} 38. Bg5 {[%clk 0:00:36]} 1-0


[Site "https://www.chess.com"]

[Event "Titled Tuesday Blitz May 17 Early 2022"]
[White "Petrovskyi, Vadym"]
[Black "Svane, Rasmus"]
[WhiteFideId "14165210"]
[BlackFideId "4657101"]
[WhiteElo "2400"]
[BlackElo "2674"]
[Result "0-1"]
[Round "05"]
[TimeControl "180+1"]
[Date "2022.05.17"]
[WhiteClock "0:00:02"]
[BlackClock "0:00:10"]

1. e4 {[%clk 0:02:59]}  c6 {[%clk 0:03:00]} 2. d4 {[%clk 0:02:36]}  d5 {[%clk 0:02:59]} 3. Nc3 {[%clk 0:02:36]}  dxe4 {[%clk 0:02:59]} 4. Nxe4 {[%clk 0:02:37]}  Nf6 {[%clk 0:03:00]} 5. Nxf6+ {[%clk 0:02:36]}  exf6 {[%clk 0:03:01]} 6. c3 {[%clk 0:02:37]}  Bd6 {[%clk 0:03:01]} 7. Bd3 {[%clk 0:02:37]}  O-O {[%clk 0:03:02]} 8. Qc2 {[%clk 0:02:38]}  Re8+ {[%clk 0:03:03]} 9. Ne2 {[%clk 0:02:39]}  h5 {[%clk 0:03:04]} 10. Be3 {[%clk 0:02:39]}  Nd7 {[%clk 0:03:04]} 11. Ng3 {[%clk 0:02:40]}  Nb6 {[%clk 0:02:55]} 12. O-O {[%clk 0:02:36]}  Nd5 {[%clk 0:02:44]} 13. Bd2 {[%clk 0:02:36]}  h4 {[%clk 0:02:36]} 14. Nf5 {[%clk 0:02:31]}  h3 {[%clk 0:02:31]} 15. g3 {[%clk 0:02:23]}  Be6 {[%clk 0:02:25]} 16. Rfe1 {[%clk 0:02:17]}  Bf8 {[%clk 0:02:20]} 17. a3 {[%clk 0:01:50]}  g6 {[%clk 0:02:13]} 18. Nh4 {[%clk 0:01:21]}  b5 {[%clk 0:01:55]} 19. Bxg6 {[%clk 0:01:12]}  fxg6 {[%clk 0:01:43]} 20. Qxg6+ {[%clk 0:01:13]}  Bg7 {[%clk 0:01:41]} 21. Bh6 {[%clk 0:01:07]}  Qd7 {[%clk 0:01:36]} 22. Rxe6 {[%clk 0:01:03]}  Rxe6 {[%clk 0:01:37]} 23. Nf5 {[%clk 0:01:03]}  Re7 {[%clk 0:01:25]} 24. Kf1 {[%clk 0:00:41]}  Qe6 {[%clk 0:01:12]} 25. Qg4 {[%clk 0:00:13]}  Rae8 {[%clk 0:01:09]} 26. Qxh3 {[%clk 0:00:13]}  Bxh6 {[%clk 0:00:36]} 27. Nxe7+ {[%clk 0:00:13]}  Rxe7 {[%clk 0:00:31]} 28. Qxh6 {[%clk 0:00:13]}  Qe2+ {[%clk 0:00:32]} 29. Kg1 {[%clk 0:00:13]}  Qg4 {[%clk 0:00:24]} 30. Rf1 {[%clk 0:00:10]}  Re2 {[%clk 0:00:23]} 31. b3 {[%clk 0:00:09]}  Qe4 {[%clk 0:00:12]} 32. Qh3 {[%clk 0:00:05]}  Kf7 {[%clk 0:00:11]} 33. Qd7+ {[%clk 0:00:04]}  Ne7 {[%clk 0:00:11]} 34. c4 {[%clk 0:00:05]}  bxc4 {[%clk 0:00:10]} 35. bxc4 {[%clk 0:00:06]}  Rd2 {[%clk 0:00:11]} 36. Qxa7 {[%clk 0:00:06]}  Qxd4 {[%clk 0:00:11]} 37. Qa6 {[%clk 0:00:06]}  Qe4 {[%clk 0:00:10]} 38. Qa4 {[%clk 0:00:05]}  Nf5 {[%clk 0:00:09]} 39. Qa7+ {[%clk 0:00:05]}  Kg6 {[%clk 0:00:10]} 40. Qc5 {[%clk 0:00:05]}  Nd4 {[%clk 0:00:10]} 41. Qf8 {[%clk 0:00:02]}  Ne2# {[%clk 0:00:10]} 0-1


[Site "https://www.chess.com"]

[Event "Titled Tuesday Blitz May 17 Early 2022"]
[White "Preotu, Razvan"]
[Black "Vovk, Orest"]
[WhiteFideId "2613280"]
[BlackFideId "14113490"]
[WhiteElo "2407"]
[BlackElo "2203"]
[Result "1-0"]
[Round "05"]
[TimeControl "180+1"]
[Date "2022.05.17"]
[WhiteClock "0:00:30"]
[BlackClock "0:00:04"]

1. e4 {[%clk 0:03:00]}  g5 {[%clk 0:02:55]} 2. d4 {[%clk 0:03:00]}  g4 {[%clk 0:02:49]} 3. Qxg4 {[%clk 0:02:50]}  d5 {[%clk 0:02:49]} 4. Qh4 {[%clk 0:02:40]}  dxe4 {[%clk 0:02:48]} 5. Qxe4 {[%clk 0:02:35]}  Nf6 {[%clk 0:02:48]} 6. Qh4 {[%clk 0:02:24]}  Rg8 {[%clk 0:02:47]} 7. Bg5 {[%clk 0:02:16]}  Rxg5 {[%clk 0:02:06]} 8. Qxg5 {[%clk 0:02:17]}  Qxd4 {[%clk 0:02:06]} 9. Nc3 {[%clk 0:02:15]}  Nc6 {[%clk 0:01:42]} 10. Bb5 {[%clk 0:02:10]}  Bd7 {[%clk 0:01:37]} 11. Nf3 {[%clk 0:02:10]}  Qb4 {[%clk 0:01:34]} 12. O-O-O {[%clk 0:01:53]}  O-O-O {[%clk 0:01:33]} 13. Bxc6 {[%clk 0:01:43]}  Bxc6 {[%clk 0:01:14]} 14. Rxd8+ {[%clk 0:01:44]}  Kxd8 {[%clk 0:01:14]} 15. Rd1+ {[%clk 0:01:44]}  Ke8 {[%clk 0:01:08]} 16. Ne5 {[%clk 0:01:35]}  Qc5 {[%clk 0:00:41]} 17. Rd8+ {[%clk 0:01:07]}  Kxd8 {[%clk 0:00:38]} 18. Nxf7+ {[%clk 0:01:07]}  Ke8 {[%clk 0:00:37]} 19. Qxc5 {[%clk 0:01:07]}  Kxf7 {[%clk 0:00:38]} 20. f3 {[%clk 0:01:06]}  Bh6+ {[%clk 0:00:37]} 21. Kb1 {[%clk 0:01:06]}  a6 {[%clk 0:00:34]} 22. Qc4+ {[%clk 0:01:04]}  Kf8 {[%clk 0:00:31]} 23. Ne4 {[%clk 0:01:04]}  Nxe4 {[%clk 0:00:31]} 24. fxe4 {[%clk 0:01:03]}  Bg7 {[%clk 0:00:23]} 25. Qe6 {[%clk 0:01:02]}  Bf6 {[%clk 0:00:19]} 26. e5 {[%clk 0:00:56]}  Bg7 {[%clk 0:00:19]} 27. g4 {[%clk 0:00:56]}  h6 {[%clk 0:00:18]} 28. h4 {[%clk 0:00:55]}  Be8 {[%clk 0:00:18]} 29. g5 {[%clk 0:00:55]}  hxg5 {[%clk 0:00:18]} 30. hxg5 {[%clk 0:00:55]}  c6 {[%clk 0:00:13]} 31. Qc8 {[%clk 0:00:51]}  b5 {[%clk 0:00:09]} 32. b4 {[%clk 0:00:46]}  Kf7 {[%clk 0:00:05]} 33. g6+ {[%clk 0:00:42]}  Kf8 {[%clk 0:00:05]} 34. Kc1 {[%clk 0:00:40]}  Bh8 {[%clk 0:00:04]} 35. Qf5+ {[%clk 0:00:35]}  Kg8 {[%clk 0:00:04]} 36. Kd2 {[%clk 0:00:35]}  Bg7 {[%clk 0:00:04]} 37. Kd3 {[%clk 0:00:35]}  Bh8 {[%clk 0:00:03]} 38. Ke4 {[%clk 0:00:36]}  Bg7 {[%clk 0:00:03]} 39. Qe6+ {[%clk 0:00:34]}  Kf8 {[%clk 0:00:03]} 40. Kf5 {[%clk 0:00:35]}  Bh8 {[%clk 0:00:02]} 41. Qc8 {[%clk 0:00:34]}  Bg7 {[%clk 0:00:03]} 42. Qxa6 {[%clk 0:00:34]}  Bh8 {[%clk 0:00:03]} 43. a4 {[%clk 0:00:33]}  bxa4 {[%clk 0:00:01]} 44. Qxa4 {[%clk 0:00:34]}  Bd7+ {[%clk 0:00:02]} 45. e6 {[%clk 0:00:34]}  Be8 {[%clk 0:00:03]} 46. Qa8 {[%clk 0:00:33]}  Bf6 {[%clk 0:00:04]} 47. c4 {[%clk 0:00:32]}  Bc3 {[%clk 0:00:04]} 48. b5 {[%clk 0:00:32]}  cxb5 {[%clk 0:00:04]} 49. cxb5 {[%clk 0:00:33]}  Bd4 {[%clk 0:00:04]} 50. Qb8 {[%clk 0:00:31]}  Bc5 {[%clk 0:00:03]} 51. Qe5 {[%clk 0:00:30]}  Bd6 {[%clk 0:00:04]} 52. Qh8# {[%clk 0:00:30]} 1-0


[Site "https://www.chess.com"]

[Event "Titled Tuesday Blitz May 17 Early 2022"]
[White "Salem, A.R. Saleh"]
[Black "Aradhya, Garg"]
[WhiteFideId "9301348"]
[BlackFideId "25006746"]
[WhiteElo "2679"]
[BlackElo "2169"]
[Result "1-0"]
[Round "05"]
[TimeControl "180+1"]
[Date "2022.05.17"]
[WhiteClock "0:00:51"]
[BlackClock "0:01:15"]

1. d4 {[%clk 0:03:00]}  d5 {[%clk 0:02:59]} 2. c4 {[%clk 0:03:01]}  c6 {[%clk 0:02:59]} 3. Nc3 {[%clk 0:03:02]}  Nf6 {[%clk 0:02:53]} 4. Nf3 {[%clk 0:03:02]}  dxc4 {[%clk 0:02:52]} 5. e4 {[%clk 0:03:03]}  b5 {[%clk 0:02:52]} 6. e5 {[%clk 0:03:04]}  Nd5 {[%clk 0:02:52]} 7. a4 {[%clk 0:03:04]}  e6 {[%clk 0:02:52]} 8. Be2 {[%clk 0:03:04]}  Be7 {[%clk 0:02:52]} 9. O-O {[%clk 0:03:04]}  O-O {[%clk 0:02:52]} 10. Ne4 {[%clk 0:02:57]}  Nb6 {[%clk 0:02:44]} 11. a5 {[%clk 0:02:46]}  Na4 {[%clk 0:02:44]} 12. Rxa4 {[%clk 0:02:35]}  bxa4 {[%clk 0:02:44]} 13. Qxa4 {[%clk 0:02:36]}  Qd5 {[%clk 0:02:39]} 14. Nc3 {[%clk 0:02:35]}  Qd7 {[%clk 0:02:39]} 15. Bxc4 {[%clk 0:02:34]}  Ba6 {[%clk 0:02:40]} 16. Rd1 {[%clk 0:02:24]}  Rc8 {[%clk 0:02:39]} 17. Ba2 {[%clk 0:02:09]}  Bb5 {[%clk 0:02:37]} 18. Qc2 {[%clk 0:02:09]}  Na6 {[%clk 0:02:36]} 19. Bb1 {[%clk 0:02:09]}  g6 {[%clk 0:02:34]} 20. Ne4 {[%clk 0:02:06]}  Nb4 {[%clk 0:02:34]} 21. Qd2 {[%clk 0:02:06]}  Nd5 {[%clk 0:02:28]} 22. Qh6 {[%clk 0:02:06]}  f5 {[%clk 0:02:24]} 23. exf6 {[%clk 0:02:01]}  Bxf6 {[%clk 0:02:24]} 24. Nxf6+ {[%clk 0:01:49]}  Nxf6 {[%clk 0:02:24]} 25. Ne5 {[%clk 0:01:49]}  Qg7 {[%clk 0:02:23]} 26. Qh4 {[%clk 0:01:50]}  c5 {[%clk 0:02:12]} 27. Bh6 {[%clk 0:01:49]}  Qe7 {[%clk 0:02:11]} 28. Bg5 {[%clk 0:01:49]}  Rf8 {[%clk 0:02:10]} 29. Ng4 {[%clk 0:01:50]}  Kg7 {[%clk 0:02:10]} 30. dxc5 {[%clk 0:01:35]}  Rad8 {[%clk 0:02:08]} 31. Re1 {[%clk 0:01:22]}  Rd4 {[%clk 0:01:42]} 32. Bh6+ {[%clk 0:01:16]}  Kf7 {[%clk 0:01:36]} 33. Ne5+ {[%clk 0:01:15]}  Kg8 {[%clk 0:01:35]} 34. Qxd4 {[%clk 0:01:15]}  Rd8 {[%clk 0:01:35]} 35. Qh4 {[%clk 0:01:15]}  Rd5 {[%clk 0:01:32]} 36. Bg5 {[%clk 0:01:08]}  Kg7 {[%clk 0:01:32]} 37. Ng4 {[%clk 0:01:04]}  Rxg5 {[%clk 0:01:18]} 38. Qxg5 {[%clk 0:01:05]}  Nd5 {[%clk 0:01:17]} 39. Qxe7+ {[%clk 0:01:04]}  Nxe7 {[%clk 0:01:18]} 40. Rxe6 {[%clk 0:01:03]}  Nd5 {[%clk 0:01:18]} 41. Ba2 {[%clk 0:01:03]}  Nb4 {[%clk 0:01:18]} 42. Bb3 {[%clk 0:01:00]}  Nc6 {[%clk 0:01:17]} 43. Rd6 {[%clk 0:00:58]}  Nxa5 {[%clk 0:01:17]} 44. Bd5 {[%clk 0:00:58]}  Nc4 {[%clk 0:01:14]} 45. Bxc4 {[%clk 0:00:58]}  Bxc4 {[%clk 0:01:14]} 46. Rd7+ {[%clk 0:00:59]}  Kf8 {[%clk 0:01:14]} 47. c6 {[%clk 0:00:58]}  Be6 {[%clk 0:01:14]} 48. Rd4 {[%clk 0:00:56]}  Bf7 {[%clk 0:01:14]} 49. Ne5 {[%clk 0:00:54]}  Be6 {[%clk 0:01:15]} 50. c7 {[%clk 0:00:54]}  Ke7 {[%clk 0:01:15]} 51. Nc6+ {[%clk 0:00:55]}  Ke8 {[%clk 0:01:15]} 52. Nxa7 {[%clk 0:00:51]} 1-0


[Site "https://www.chess.com"]

[Event "Titled Tuesday Blitz May 17 Early 2022"]
[White "Seemann, Jakub"]
[Black "Zhao, Jun"]
[WhiteFideId "21874697"]
[BlackFideId "8602522"]
[WhiteElo "2003"]
[BlackElo "2547"]
[Result "1-0"]
[Round "05"]
[TimeControl "180+1"]
[Date "2022.05.17"]
[WhiteClock "0:00:10"]
[BlackClock "0:00:01"]

1. e4 {[%clk 0:03:00]}  d5 {[%clk 0:02:52]} 2. exd5 {[%clk 0:02:57]}  Qxd5 {[%clk 0:02:53]} 3. Nc3 {[%clk 0:02:57]}  Qd6 {[%clk 0:02:54]} 4. d4 {[%clk 0:02:57]}  Nf6 {[%clk 0:02:54]} 5. Nf3 {[%clk 0:02:57]}  c6 {[%clk 0:02:55]} 6. g3 {[%clk 0:02:57]}  Bg4 {[%clk 0:02:54]} 7. Bf4 {[%clk 0:02:57]}  Qd8 {[%clk 0:02:53]} 8. Bg2 {[%clk 0:02:57]}  e6 {[%clk 0:02:52]} 9. h3 {[%clk 0:02:57]}  Bxf3 {[%clk 0:02:51]} 10. Bxf3 {[%clk 0:02:58]}  Nbd7 {[%clk 0:02:51]} 11. O-O {[%clk 0:02:57]}  Be7 {[%clk 0:02:52]} 12. h4 {[%clk 0:02:54]}  O-O {[%clk 0:02:52]} 13. Re1 {[%clk 0:02:51]}  Qb6 {[%clk 0:02:49]} 14. Qd2 {[%clk 0:02:49]}  Rfd8 {[%clk 0:02:48]} 15. Qe3 {[%clk 0:02:35]}  Nf8 {[%clk 0:02:29]} 16. a3 {[%clk 0:02:20]}  Qxd4 {[%clk 0:02:17]} 17. Qe2 {[%clk 0:02:04]}  Nd5 {[%clk 0:02:08]} 18. Be5 {[%clk 0:01:57]}  Nxc3 {[%clk 0:02:04]} 19. bxc3 {[%clk 0:01:58]}  Qa4 {[%clk 0:01:53]} 20. Rab1 {[%clk 0:01:56]}  Rd7 {[%clk 0:01:53]} 21. h5 {[%clk 0:01:47]}  h6 {[%clk 0:01:53]} 22. Rb3 {[%clk 0:01:36]}  Rad8 {[%clk 0:01:49]} 23. Qf1 {[%clk 0:01:32]}  Bf6 {[%clk 0:01:42]} 24. Bxf6 {[%clk 0:01:31]}  gxf6 {[%clk 0:01:43]} 25. Re4 {[%clk 0:01:29]}  Qa5 {[%clk 0:01:35]} 26. Rg4+ {[%clk 0:01:25]}  Kh7 {[%clk 0:01:34]} 27. Qc4 {[%clk 0:01:21]}  f5 {[%clk 0:01:29]} 28. Rd4 {[%clk 0:01:14]}  Qe5 {[%clk 0:01:27]} 29. Rxb7 {[%clk 0:01:10]}  Qe1+ {[%clk 0:01:17]} 30. Qf1 {[%clk 0:00:53]}  Qxc3 {[%clk 0:01:13]} 31. Rdxd7 {[%clk 0:00:24]}  Rxd7 {[%clk 0:01:12]} 32. Rb3 {[%clk 0:00:23]}  Qxc2 {[%clk 0:01:10]} 33. Rb8 {[%clk 0:00:23]}  Qc3 {[%clk 0:01:00]} 34. Kg2 {[%clk 0:00:20]}  Kg7 {[%clk 0:00:59]} 35. Qa6 {[%clk 0:00:21]}  Rc7 {[%clk 0:00:47]} 36. Ra8 {[%clk 0:00:14]}  Nd7 {[%clk 0:00:37]} 37. Rxa7 {[%clk 0:00:12]}  Rxa7 {[%clk 0:00:35]} 38. Qxa7 {[%clk 0:00:13]}  Ne5 {[%clk 0:00:36]} 39. Qe3 {[%clk 0:00:13]}  Qxe3 {[%clk 0:00:30]} 40. fxe3 {[%clk 0:00:14]}  Nxf3 {[%clk 0:00:20]} 41. Kxf3 {[%clk 0:00:15]}  Kf6 {[%clk 0:00:21]} 42. Kf4 {[%clk 0:00:14]}  Ke7 {[%clk 0:00:10]} 43. Ke5 {[%clk 0:00:14]}  f6+ {[%clk 0:00:10]} 44. Kd4 {[%clk 0:00:14]}  Kd6 {[%clk 0:00:11]} 45. a4 {[%clk 0:00:13]}  c5+ {[%clk 0:00:07]} 46. Kc4 {[%clk 0:00:14]}  Kc6 {[%clk 0:00:07]} 47. a5 {[%clk 0:00:14]}  e5 {[%clk 0:00:07]} 48. a6 {[%clk 0:00:15]}  Kb6 {[%clk 0:00:08]} 49. a7 {[%clk 0:00:15]}  Kxa7 {[%clk 0:00:08]} 50. Kxc5 {[%clk 0:00:16]}  Ka6 {[%clk 0:00:06]} 51. Kd6 {[%clk 0:00:15]}  Kb5 {[%clk 0:00:06]} 52. Ke6 {[%clk 0:00:16]}  Kc4 {[%clk 0:00:06]} 53. Kxf6 {[%clk 0:00:10]}  Kd5 {[%clk 0:00:01]} 54. Kxf5 {[%clk 0:00:10]} 1-0


[Site "https://www.chess.com"]

[Event "Titled Tuesday Blitz May 17 Early 2022"]
[White "Vasquez Schroeder, Rodrigo"]
[Black "Zhu, Jiner"]
[WhiteFideId "3400042"]
[BlackFideId "8608059"]
[WhiteElo "2567"]
[BlackElo "2281"]
[Result "1-0"]
[Round "05"]
[TimeControl "180+1"]
[Date "2022.05.17"]
[WhiteClock "0:00:06"]
[BlackClock "0:00:02"]

1. e4 {[%clk 0:02:57]}  c5 {[%clk 0:02:57]} 2. Nf3 {[%clk 0:02:56]}  Nc6 {[%clk 0:02:57]} 3. d4 {[%clk 0:02:54]}  cxd4 {[%clk 0:02:57]} 4. Nxd4 {[%clk 0:02:54]}  Nf6 {[%clk 0:02:57]} 5. Nc3 {[%clk 0:02:54]}  e5 {[%clk 0:02:58]} 6. Ndb5 {[%clk 0:02:54]}  d6 {[%clk 0:02:58]} 7. Bg5 {[%clk 0:02:55]}  a6 {[%clk 0:02:58]} 8. Na3 {[%clk 0:02:55]}  b5 {[%clk 0:02:59]} 9. Nd5 {[%clk 0:02:56]}  Be7 {[%clk 0:02:58]} 10. Bxf6 {[%clk 0:02:56]}  Bxf6 {[%clk 0:02:58]} 11. c3 {[%clk 0:02:57]}  Rb8 {[%clk 0:02:56]} 12. Nc2 {[%clk 0:02:56]}  Bg5 {[%clk 0:02:57]} 13. g3 {[%clk 0:02:50]}  O-O {[%clk 0:02:54]} 14. h4 {[%clk 0:02:49]}  Bh6 {[%clk 0:02:53]} 15. Bh3 {[%clk 0:02:47]}  Be6 {[%clk 0:02:52]} 16. Kf1 {[%clk 0:02:42]}  Ne7 {[%clk 0:02:50]} 17. Ncb4 {[%clk 0:02:37]}  Nxd5 {[%clk 0:02:18]} 18. Nxd5 {[%clk 0:02:20]}  Qd7 {[%clk 0:02:16]} 19. Kg2 {[%clk 0:02:18]}  f5 {[%clk 0:02:12]} 20. Bxf5 {[%clk 0:01:49]}  Bxf5 {[%clk 0:02:12]} 21. exf5 {[%clk 0:01:49]}  Rxf5 {[%clk 0:01:36]} 22. f3 {[%clk 0:01:33]}  Rbf8 {[%clk 0:01:34]} 23. Rf1 {[%clk 0:01:30]}  R5f7 {[%clk 0:01:07]} 24. Qd3 {[%clk 0:01:29]}  Kh8 {[%clk 0:01:05]} 25. Rae1 {[%clk 0:01:27]}  Qb7 {[%clk 0:01:01]} 26. Re4 {[%clk 0:01:25]}  a5 {[%clk 0:01:00]} 27. b3 {[%clk 0:01:25]}  Qc6 {[%clk 0:00:56]} 28. c4 {[%clk 0:01:24]}  bxc4 {[%clk 0:00:55]} 29. Rxc4 {[%clk 0:01:20]}  Qb7 {[%clk 0:00:55]} 30. Qe4 {[%clk 0:01:18]}  Bd2 {[%clk 0:00:51]} 31. Rf2 {[%clk 0:01:02]}  Bb4 {[%clk 0:00:50]} 32. Nxb4 {[%clk 0:00:53]}  axb4 {[%clk 0:00:50]} 33. Rxb4 {[%clk 0:00:47]}  Qa6 {[%clk 0:00:35]} 34. Rc4 {[%clk 0:00:38]}  Qa5 {[%clk 0:00:30]} 35. Rcc2 {[%clk 0:00:38]}  Qa3 {[%clk 0:00:29]} 36. Rcd2 {[%clk 0:00:38]}  h6 {[%clk 0:00:28]} 37. Qd5 {[%clk 0:00:37]}  Qa7 {[%clk 0:00:24]} 38. Rfe2 {[%clk 0:00:26]}  Rxf3 {[%clk 0:00:23]} 39. Qxf3 {[%clk 0:00:21]}  Rxf3 {[%clk 0:00:24]} 40. Kxf3 {[%clk 0:00:22]}  Qb7+ {[%clk 0:00:24]} 41. Kf2 {[%clk 0:00:20]}  Qb6+ {[%clk 0:00:24]} 42. Kg2 {[%clk 0:00:20]}  Qc6+ {[%clk 0:00:23]} 43. Kh2 {[%clk 0:00:20]}  Qb6 {[%clk 0:00:22]} 44. Rd5 {[%clk 0:00:20]}  Qb4 {[%clk 0:00:15]} 45. Red2 {[%clk 0:00:20]}  e4 {[%clk 0:00:15]} 46. Rxd6 {[%clk 0:00:20]}  e3 {[%clk 0:00:15]} 47. Rd8+ {[%clk 0:00:20]}  Kh7 {[%clk 0:00:15]} 48. Re2 {[%clk 0:00:20]}  Qb5 {[%clk 0:00:10]} 49. Rxe3 {[%clk 0:00:17]}  Qa5 {[%clk 0:00:11]} 50. Rdd3 {[%clk 0:00:14]}  Qxa2+ {[%clk 0:00:11]} 51. Kg1 {[%clk 0:00:14]}  Qb1+ {[%clk 0:00:11]} 52. Kg2 {[%clk 0:00:14]}  Qc2+ {[%clk 0:00:12]} 53. Kf3 {[%clk 0:00:15]}  Qb1 {[%clk 0:00:12]} 54. Rc3 {[%clk 0:00:14]}  Qf1+ {[%clk 0:00:13]} 55. Ke4 {[%clk 0:00:14]}  h5 {[%clk 0:00:12]} 56. Kd4 {[%clk 0:00:14]}  Qd1+ {[%clk 0:00:13]} 57. Kc5 {[%clk 0:00:13]}  Qd7 {[%clk 0:00:11]} 58. b4 {[%clk 0:00:13]}  Qc7+ {[%clk 0:00:11]} 59. Kb5 {[%clk 0:00:13]}  Qb7+ {[%clk 0:00:11]} 60. Ka4 {[%clk 0:00:13]}  Qa6+ {[%clk 0:00:11]} 61. Kb3 {[%clk 0:00:14]}  Qf1 {[%clk 0:00:09]} 62. Re5 {[%clk 0:00:09]}  Qb1+ {[%clk 0:00:06]} 63. Kc4 {[%clk 0:00:07]}  Qf1+ {[%clk 0:00:05]} 64. Kc5 {[%clk 0:00:06]}  Qf8+ {[%clk 0:00:05]} 65. Kd4 {[%clk 0:00:06]}  Qd6+ {[%clk 0:00:05]} 66. Rd5 {[%clk 0:00:05]}  Qf6+ {[%clk 0:00:06]} 67. Kc4 {[%clk 0:00:06]}  Qc6+ {[%clk 0:00:06]} 68. Rc5 {[%clk 0:00:06]}  Qe4+ {[%clk 0:00:06]} 69. Kb3 {[%clk 0:00:06]}  Qb1+ {[%clk 0:00:06]} 70. Ka4 {[%clk 0:00:06]}  Qa1+ {[%clk 0:00:05]} 71. Kb5 {[%clk 0:00:05]}  g6 {[%clk 0:00:04]} 72. Rc7+ {[%clk 0:00:03]}  Kh6 {[%clk 0:00:04]} 73. Rc8 {[%clk 0:00:03]}  Qf1+ {[%clk 0:00:03]} 74. Ka5 {[%clk 0:00:03]}  Qa1+ {[%clk 0:00:03]} 75. Kb6 {[%clk 0:00:04]}  Qg1+ {[%clk 0:00:04]} 76. R8c5 {[%clk 0:00:04]}  Qd4 {[%clk 0:00:01]} 77. b5 {[%clk 0:00:04]}  Qd8+ {[%clk 0:00:02]} 78. Ka6 {[%clk 0:00:05]}  Qa8+ {[%clk 0:00:02]} 79. Kb6 {[%clk 0:00:05]}  Qb8+ {[%clk 0:00:03]} 80. Ka5 {[%clk 0:00:05]}  Qa7+ {[%clk 0:00:03]} 81. Kb4 {[%clk 0:00:06]}  Qb7 {[%clk 0:00:03]} 82. Rc6 {[%clk 0:00:05]}  Qe7+ {[%clk 0:00:03]} 83. R3c5 {[%clk 0:00:05]}  Qe4+ {[%clk 0:00:04]} 84. Rc4 {[%clk 0:00:05]}  Qb1+ {[%clk 0:00:04]} 85. Kc5 {[%clk 0:00:05]}  Qg1+ {[%clk 0:00:04]} 86. Kb4 {[%clk 0:00:05]}  Qb1+ {[%clk 0:00:04]} 87. Ka5 {[%clk 0:00:05]}  Qa2+ {[%clk 0:00:04]} 88. Kb6 {[%clk 0:00:06]}  Qa8 {[%clk 0:00:04]} 89. Rc7 {[%clk 0:00:06]}  Qa3 {[%clk 0:00:04]} 90. Kc6 {[%clk 0:00:05]}  Qf3+ {[%clk 0:00:02]} 91. Kc5 {[%clk 0:00:05]}  Qe3+ {[%clk 0:00:03]} 92. Kb4 {[%clk 0:00:05]}  Qd2+ {[%clk 0:00:03]} 93. Kc5 {[%clk 0:00:03]}  Qe3+ {[%clk 0:00:03]} 94. Kc6 {[%clk 0:00:04]}  Qe6+ {[%clk 0:00:03]} 95. Kb7 {[%clk 0:00:04]}  Qd5+ {[%clk 0:00:03]} 96. Kb6 {[%clk 0:00:04]}  Qd6+ {[%clk 0:00:03]} 97. R4c6 {[%clk 0:00:04]}  Qd4+ {[%clk 0:00:03]} 98. Kb7 {[%clk 0:00:05]}  Qd5 {[%clk 0:00:03]} 99. b6 {[%clk 0:00:06]}  Qe4 {[%clk 0:00:02]} 100. Rd7 {[%clk 0:00:06]}  Qf3 {[%clk 0:00:02]} 101. Rd6 {[%clk 0:00:06]} 1-0


[Site "https://www.chess.com"]